Cogmind - Beta 9.1 @@@ ROGUE MODE // 2019.11.03 @ 07:07:42 Player: MrPainting Result: Self-destructed Performance ------------- Evolutions (2) 1000 Regions Visited (5) 1000 Robots Destroyed (33) 165 Value Destroyed (920) 920 Prototype IDs (3) 60 Alien Tech Used (0) 0 Bonus (300) 300 TOTAL SCORE: 3445 Bonus ------- Aligned with FarCom 300 Cogmind --------- Core Integrity 264/550 Matter 300/300 Energy 100/100 System Corruption 0% Temperature Cool (0) Location -8/Materials Parts ------- Power (1) Propulsion (4) Carbon-fiber Leg Utility (4) Medium Storage Unit Improved Signal Interpreter Hacking Suite Weapon (2) Scythe Scythe Inventory (8) Humpback Advanced Sensor Array Hardlight Generator Gauss Rifle Peak State ------------ Power Light Nuclear Core Propulsion Flexi-carbon Leg Flexi-carbon Leg Improved Hover Unit Improved Hover Unit Utility Medium Storage Unit Improved Terrain Scan Processor Armor Integrity Analyzer Phase Shifter Weapon AWS/Gauss Inventory Improved Hover Unit Cesium-ion Thruster Humpback High-capacity Matter Pod Hacking Suite Minigun Flak Cannon [Rating: 45] Favorites ----------- Power Ion Engine Engine Ion Engine Power Core Light Nuclear Core Propulsion Light Treads Treads Light Treads Leg Flexi-carbon Leg Hover Unit Improved Hover Unit Flight Unit Cesium-ion Thruster Utility Medium Storage Unit Device Phase Shifter Storage Medium Storage Unit Processor Targeting Computer Hackware Hacking Suite Protection Propulsion Shielding Weapon AWS/Gauss Energy Gun Medium Laser Ballistic Gun AWS/Gauss Slashing Weapon Scythe Build | -11 -10 -10 -10 -9 -8 ------- Run | Scr Mat Min Exi Min Mat Slots Evolved 4 | . . . . . 4 Power . | . . . . . . Propulsion 2 | . . . . . 2 Utility 2 | . . . . . 2 Weapon . | . . . . . . Parts Attached 33 | 2 5 2 2 5 17 Power 5 | . 1 1 . 2 1 Engine 3 | . 1 1 . 1 . Core 2 | . . . . 1 1 Reactor . | . . . . . . Propulsion 13 | . 2 . . 2 9 Treads 3 | . 2 . . . 1 Leg 6 | . . . . 2 4 Wheel . | . . . . . . Hover 3 | . . . . . 3 Flight 1 | . . . . . 1 Utility 9 | . 2 . 1 1 5 Device 1 | . . . . . 1 Storage 2 | . . . 1 1 . Processor 4 | . 1 . . . 3 Hackware 1 | . . . . . 1 Protection 1 | . 1 . . . . Artifact . | . . . . . . Weapon 6 | 2 . 1 1 . 2 Energy Gun 1 | . . 1 . . . Energy Cannon . | . . . . . . Ballistic Gun 3 | 2 . . 1 . . Ballistic Cannon . | . . . . . . Launcher . | . . . . . . Special Weapon . | . . . . . . Impact Weapon . | . . . . . . Slashing Weapon 2 | . . . . . 2 Piercing Weapon . | . . . . . . Special Melee Weapon . | . . . . . . Unidentified Prototypes 1 | . . . 1 . . Parts Lost 9 | . . 1 . 1 7 Power 1 | . . . . . 1 Propulsion 5 | . . . . . 5 Utility 2 | . . . . 1 1 Weapon 1 | . . 1 . . . Highest Loss Streak 4 | . . 1 . 1 4 Average Slot Usage (%) 86 | . 80 100 92 77 83 Engine 8 | . 9 14 14 11 1 Core 3 | . . . . 2 7 Treads 13 | . 18 28 28 4 2 Leg 10 | . . . . 23 14 Hover 5 | . . . . . 13 Device 2 | . . . . . 7 Storage 8 | . . . 6 14 9 Processor 11 | . 14 14 14 6 11 Hackware 1 | . . . . . 5 Protection 3 | . 9 14 7 . . Energy Gun 2 | . . 3 7 . . Ballistic Gun 13 | . 28 24 14 14 7 Naked Turns . | . . . . . . Heaviest Build 24 | 2 6 9 19 23 24 Greatest Support 60 | 3 40 40 40 40 60 Greatest Overweight (x) 1 | . . . . . 1 Average Overweight (x) . | . . . . . . Largest Inventory Capacity 8 | 4 4 4 6 8 8 Average Capacity 6 | 4 4 4 4 7 8 Most Carried 8 | 4 4 4 6 8 8 Average Carried 6 | 3 2 3 4 7 7 Final Capacity 8 | 4 4 4 6 8 8 Final Carried 8 | 4 2 3 6 8 5 Class Distribution -------------------- 70% | Mutant 29% | Scavenger-Mutant Dominant Class ---------------- Mutant | -10/Materials Mutant | -10/Mines Mutant | -10/Exiles Mutant | -9/Mines Scavenger-Mutant | -8/Materials Resources | -11 -10 -10 -10 -9 -8 ----------- Run | Scr Mat Min Exi Min Mat Matter Collected 747 | 193 . 303 26 65 160 Remotely . | . . . . . . Salvage Created 1140 | . . 183 . 532 425 Parts 59 | . . 9 . 24 26 Haulers Intercepted . | . . . . . . Recyclers Shooed . | . . . . . . Parts Field Recycled . | . . . . . . Retrieved Matter . | . . . . . . Parts Self-Destructed . | . . . . . . Prevented . | . . . . . . Kills | -11 -10 -10 -10 -9 -8 ------- Run | Scr Mat Min Exi Min Mat Combat Hostiles Destroyed 28 | . . 4 . 18 6 Melee 1 | . . . . . 1 Guns 27 | . . 4 . 18 5 Classes Destroyed 7 | . . 1 . 1 5 Worker 1 | . . . . . 1 Operator 1 | . . . . . 1 Watcher 3 | . . . . . 3 Grunt 17 | . . 4 . 9 4 Sentry 1 | . . . . . 1 Hunter 1 | . . . . . 1 Assembled 9 | . . . . 9 . Best Kill Streak 10 | . . 2 . 10 2 Combat Bots Only 10 | . . 2 . 10 2 Max Kills in Single Turn 1 | . . 1 . 1 1 Gunslinging . | . . . . . . Exploded . | . . . . . . Melee 1 | . . . . . 1 Uniques/NPCs Destroyed . | . . . . . . Combat | -11 -10 -10 -10 -9 -8 -------- Run | Scr Mat Min Exi Min Mat Damage Taken 1732 | . 47 445 . 256 984 Core 413 | . 23 57 . 47 286 Absorbed by Shields . | . . . . . . Core Remaining (%) 74 | 100 . . . 49 . Volleys Fired 23 | . . 23 . . . Largest 2 | . . 2 . . . Hottest 70 | . . 70 . . . Shots Fired 140 | . . 46 . 59 35 Gun 140 | . . 46 . 59 35 Cannon . | . . . . . . Launcher . | . . . . . . Special . | . . . . . . Kinetic 131 | . . 37 . 59 35 Thermal 9 | . . 9 . . . Explosive . | . . . . . . Electromagnetic . | . . . . . . Robot Hit Streak 41 | . . 30 . 41 21 Robot Miss Streak 4 | . . 1 . 2 4 Penetration Max . | . . . . . . Secondary Targets 1 | . . 1 . . . Max Gunslinging Chain 1 | . . 1 . . . Autonomous 95 | . . . . 59 36 Shots Hit Robots 135 | . . 44 . 52 39 Core Hits 51 | . . 13 . 21 17 Critical Hits 4 | . . 1 . 2 1 Critical Kills 2 | . . 1 . 1 . Critical Parts Destroyed 2 | . . . . 1 1 Melee Attacks 15 | . . . . . 15 Impact . | . . . . . . Slashing 15 | . . . . . 15 Piercing . | . . . . . . Sneak Attacks . | . . . . . . Combat Hostiles . | . . . . . . Follow-up Attacks 1 | . . . . . 1 Damage Inflicted 3005 | . . 398 . 1484 1123 Guns 2699 | . . 398 . 1484 817 Cannons . | . . . . . . Explosions . | . . . . . . Melee 306 | . . . . . 306 Ramming . | . . . . . . Kinetic 2588 | . . 287 . 1484 817 Thermal 111 | . . 111 . . . Explosive . | . . . . . . Electromagnetic . | . . . . . . Impact . | . . . . . . Slashing 306 | . . . . . 306 Piercing . | . . . . . . Highest Corruption 1 | . . . . 1 . Average Corruption 1 | . . . . 1 . Corruption Purged . | . . . . . . Overload Shots . | . . . . . . Overflow Damage 24 | . . . . . 24 Projectiles . | . . . . . . Explosions . | . . . . . . Melee 24 | . . . . . 24 Knockbacks . | . . . . . . Impact . | . . . . . . Kinetic . | . . . . . . Secondary . | . . . . . . Self-Inflicted Damage . | . . . . . . Shots . | . . . . . . Rammed . | . . . . . . Targets Rammed . | . . . . . . Kicked . | . . . . . . Crushed . | . . . . . . Highest Temperature 218 | . . 218 . 2 . Average Temperature 74 | . . 75 . 2 . Received Heat Transfer 707 | . 24 252 . 134 297 Effects 1 | . . 1 . . . Interference 1 | . . 1 . . . Siege Activations . | . . . . . . Robots Corrupted . | . . . . . . Combat Hostiles . | . . . . . . Parts Fried . | . . . . . . Impact Corruptions . | . . . . . . Robots Melted . | . . . . . . Combat Hostiles . | . . . . . . Parts Melted . | . . . . . . Heat Transferred 333 | . . 333 . . . Parts Sabotaged . | . . . . . . Parts Stolen . | . . . . . . Parts Stripped . | . . . . . . Power Chain Reactions . | . . . . . . Missiles Intercepted . | . . . . . . Alert | -11 -10 -10 -10 -9 -8 ------- Run | Scr Mat Min Exi Min Mat Peak Influence 255 | . 15 95 . 255 154 Average Influence 82 | . 7 42 . 93 97 Maximum Alert Level 1 | . . . . 1 . Low Security (%) 93 | . . . . . . Level 1 6 | . . . . . . Level 2 . | . . . . . . Level 3 . | . . . . . . Level 4 . | . . . . . . Level 5 . | . . . . . . High Security . | . . . . . . Max Security . | . . . . . . Squads Dispatched 2 | . . . . . 2 Investigation 1 | . . . . . 1 Extermination . | . . . . . . Reinforcement . | . . . . . . Assault . | . . . . . . Garrison 1 | . . . . . 1 Intercept . | . . . . . . Construction Impeded . | . . . . . . Haulers Reinforced . | . . . . . . Stealth | -11 -10 -10 -10 -9 -8 --------- Run | Scr Mat Min Exi Min Mat Distress Signals . | . . . . . . Communications Jammed . | . . . . . . Distress Signals . | . . . . . . Times Spotted 36 | . 3 4 . 17 12 Peak Tracking Total 3 | . 3 2 . 3 3 Tactical Retreats . | . . . . . . Traps | -11 -10 -10 -10 -9 -8 ------- Run | Scr Mat Min Exi Min Mat Traps Triggered 1 | . . . . . 1 Indirectly . | . . . . . . Trap Hack Attempts . | . . . . . . Triggered . | . . . . . . Disarmed . | . . . . . . Reprogrammed . | . . . . . . Reused . | . . . . . . Traps Extracted . | . . . . . . Installed . | . . . . . . Triggered . | . . . . . . Machines | -11 -10 -10 -10 -9 -8 ---------- Run | Scr Mat Min Exi Min Mat Machines Disabled 2 | . . . . 2 . Max in Single Turn 1 | . . . . 1 . Machines Sabotaged . | . . . . . . Garrisons Compromised . | . . . . . . Overloaded Fab Kills . | . . . . . . Fab Network Shutdowns . | . . . . . . Hacking | -11 -10 -10 -10 -9 -8 --------- Run | Scr Mat Min Exi Min Mat Machines Accessed 4 | . . . . . 4 Terminals 3 | . . . . . 3 Fabricators . | . . . . . . Repair Stations . | . . . . . . Recycling Units . | . . . . . . Scanalyzers 1 | . . . . . 1 Garrison Access . | . . . . . . Total Hacks 13 | . . . . . 13 Successful 12 | . . . . . 12 Failed 1 | . . . . . 1 Catastrophic . | . . . . . . Database Lockouts . | . . . . . . Manual 11 | . . . 1 . 10 Terminals 9 | . . . . . 9 Fabricators . | . . . . . . Repair Stations . | . . . . . . Recycling Units . | . . . . . . Scanalyzers 4 | . . . . . 4 Garrison Access . | . . . . . . Terminal Hacks 5 | . . . . . 5 Part Schematic 1 | . . . . . 1 Prototype ID Bank 1 | . . . . . 1 Terminal Index 2 | . . . . . 2 Alert Level 1 | . . . . . 1 Fabricator Hacks . | . . . . . . Repair Station Hacks . | . . . . . . Recycling Unit Hacks . | . . . . . . Scanalyzer 4 | . . . . . 4 Insert Component 2 | . . . . . 2 Analyze 2 | . . . . . 2 Garrison Access Hacks . | . . . . . . Unauthorized Hacks 7 | . . . . . 7 Terminals 3 | . . . . . 3 Track 1 | . . . . . 1 Botnet 2 | . . . . . 2 Fabricators . | . . . . . . Repair Stations . | . . . . . . Recycling Units . | . . . . . . Scanalyzers . | . . . . . . Garrison Access . | . . . . . . Data Cores Recovered 1 | . . . . . 1 Used . | . . . . . . Hacking Detections 3 | . . . . . 3 Full Trace Events . | . . . . . . Feedback Events . | . . . . . . Feedback Blocked . | . . . . . . Robot Schematics Acquired . | . . . . . . Robots Built . | . . . . . . Matter . | . . . . . . Time . | . . . . . . Total Robot Build Rating . | . . . . . . Part Schematics Acquired 3 | . . . . . 3 Parts Built . | . . . . . . Matter . | . . . . . . Time . | . . . . . . Total Part Build Rating . | . . . . . . Parts Repaired . | . . . . . . Time . | . . . . . . Parts Recycled . | . . . . . . Recycled Matter . | . . . . . . Retrieved Matter . | . . . . . . Retrieved Components . | . . . . . . Parts Scanalyzed 2 | . . . . . 2 Part Schematics Acquired 2 | . . . . . 2 Parts Damaged . | . . . . . . Bothacking | -11 -10 -10 -10 -9 -8 ------------ Run | Scr Mat Min Exi Min Mat Used RIF Installer . | . . . . . . Robots Hacked . | . . . . . . Non-combat . | . . . . . . Combat . | . . . . . . Robot Hacks Applied . | . . . . . . Relay Couplers Released . | . . . . . . Robots Rewired . | . . . . . . Allies Hacked . | . . . . . . Hacks Repelled . | . . . . . . Allies | -11 -10 -10 -10 -9 -8 -------- Run | Scr Mat Min Exi Min Mat Total Allies . | . . . . . . Largest Group . | . . . . . . Highest-Rated Group . | . . . . . . Highest-Rated Ally . | . . . . . . Total Orders . | . . . . . . Ally Attacks . | . . . . . . Total Damage . | . . . . . . Kills . | . . . . . . Allies Corrupted . | . . . . . . Allies Melted . | . . . . . . Intel | -11 -10 -10 -10 -9 -8 ------- Run | Scr Mat Min Exi Min Mat Robot Analysis Total . | . . . . . . Derelict Logs Recovered 1 | . . . . 1 . Drone Launches . | . . . . . . Drone Recoveries . | . . . . . . Exploration | -11 -10 -10 -10 -9 -8 ------------- Run | Scr Mat Min Exi Min Mat Turns Passed 2059 | 30 31 300 484 474 740 Spaces Moved 1548 | 44 27 142 298 324 713 Core 60 | 44 16 . . . . Treads 521 | . 11 142 298 48 22 Legs 518 | . . . . 276 242 Wheels . | . . . . . . Hover 449 | . . . . . 449 Flight . | . . . . . . Fastest Speed 50 | 50 50 160 160 120 62 Average Speed 114 | 50 94 160 160 125 86 Slowest Speed 165 | 50 160 160 160 160 165 Overloaded Moves . | . . . . . . Propulsion Burnouts . | . . . . . . Robots Hopped . | . . . . . . Cave-ins Triggered . | . . . . . . Exploration Rate (%) 36 | 3 12 26 65 79 34 Regions Visited 5 Branch Regions 3 Pre-discovered Areas 2 | . . . . 2 . Known Exits Taken . | . . . . . . Unknown Exits Taken 5 | 1 1 1 1 1 . Scrap Searched 2 | . . . . 2 . Spaces Dug . | . . . . . . Terrain Destroyed 57 | . . . . 42 15 Melee . | . . . . . . Projectile 57 | . . . . 42 15 AOE . | . . . . . . Actions | -11 -10 -10 -10 -9 -8 --------- Run | Scr Mat Min Exi Min Mat Total 1773 | 51 32 177 306 389 818 Wait 101 | . . 6 . 55 40 Move 1543 | 43 26 141 297 323 713 Hop . | . . . . . . Pick Up 32 | 6 1 3 4 2 16 Fast Attach 13 | . 2 . . 4 7 Attach 16 | 2 3 1 1 . 9 Detach 1 | . . . . . 1 Swap 4 | . . 1 1 1 1 Drop 26 | . . 2 3 4 17 Fire 23 | . . 23 . . . Melee 14 | . . . . . 14 Ram . | . . . . . . Kick . | . . . . . . Crush . | . . . . . . Escape Stasis . | . . . . . . Rewire . | . . . . . . Trap . | . . . . . . Miscellaneous . | . . . . . . Route ------- -11/Scrapyard -10/Materials -10/Mines -10/Exiles -9/Mines -8/Materials History --------- Turn | Location | Event 13 | -11/Scrapyard | Discovered new exit (range 15) 31 | -11/Scrapyard | Entered Materials 36 | -10/Materials | Discovered new exit (range 16) 62 | -10/Materials | Entered Mines 320 | -10/Mines | Build established: Mutant 354 | -10/Mines | Deemed a non-threat by the Exiles lab entrance 354 | -10/Mines | Discovered new exit (range 5) 362 | -10/Mines | Entered Exiles 402 | -10/Exiles | Met 8R-AWN 426 | -10/Exiles | Met EX-HEX 549 | -10/Exiles | Met EX-BIN 568 | -10/Exiles | Aligned with FarCom system 570 | -10/Exiles | Given EX-Vault access code 608 | -10/Exiles | Opened EX-Vault 615 | -10/Exiles | Found Prototype Ballistic Gun 617 | -10/Exiles | Identified AWS/Gauss 656 | -10/Exiles | Warned to stay clear of 0b10 Research branches 697 | -10/Exiles | Met EX-DEC 828 | -10/Exiles | Discovered new exit (range 14) 846 | -10/Exiles | Left Exiles lab with AWS/Gauss 846 | -10/Exiles | Entered Mines 847 | -9/Mines | Assembled infested the area 977 | -9/Mines | Destroyed 10 combat bots 1005 | -9/Mines | Found a hidden stash of uninstalled traps 1239 | -9/Mines | Core integrity fell below 50% 1304 | -9/Mines | Discovered new exit (range 13) 1314 | -9/Mines | Learned location of Storage (-7) 1320 | -9/Mines | Entered Materials 1320 | -8/Materials | Evolved 4 slots: Propulsion x2, Utility x2 1418 | -8/Materials | Garrison activated, responded to threat 1679 | -8/Materials | Build established: Scavenger-Mutant 2060 | -8/Materials | Core integrity fell below 50% 2060 | -8/Materials | Self-destructed Last Messages --------------- 02024_ Dropped Imp. Hover Unit. 02024_ K-01 Serf collects debris. 02026_ Dropped AWS/Gauss. 02027_ K-01 Serf collects debris. 02029_ Acquired 20 matter. 02029_ K-01 Serf cleans the Garrison Access. 02031_ K-01 Serf collects debris. 02033_ K-01 Serf cleans the Garrison Access. 02040_ Lgt. Nuclear Core destroyed. 02041_ K-01 Serf cleans the Garrison Access. 02044_ R-06 Scavenger collects Terrain Scan Processor. 02048_ R-06 Scavenger collects Propulsion Shielding. 02048_ K-01 Serf cleans the Garrison Access. 02052_ Carbon-fiber Leg destroyed. 02052_ Adv. Treads destroyed. 02053_ K-01 Serf cleans the Garrison Access. 02055_ Particle Gun severed. 02056_ Cesium-ion Thruster destroyed. 02056_ R-06 Scavenger collects Wheel. 02060_ R-06 Scavenger collects Terrain Scan Processor. Map ----- +----------------------------------------------------+ | ?????????? ??????????????????? | | ?????????? ???????????????????? | | ?????????? t????????????????????? | | ?????????## #?????????????????????? | | ?????????#T #?????????????????????? | | ??????????# #???????????########### | | ??????????# #???????????# ! ] # | | ??????????# #???????????# # | | ??????????# #???????????# # | | ??????????# #???????????# """ """ # | | ??????????# #???????????# """ """ # | | ?########## #???????????# """ """ # | | ?# # %#???????????# # | | ?#!! #k #???????????# # | | ?#!! #% #??????????####+###+### | | ?#!! # #?????###??# #? | | ?# + #### #??# ##### #? | | ?# # # #??# #???# ## | | ?# # + #??# #???# "" | | ?# # ############+###?# Y" | | ?# # #????# % #?# "" | | ?##########g %#????# #?# ## | | ??????????# ##???# #?# #? | | ??????????# ##???# #?# #? | | ??????????# ##???# #?# #? | | ??????????# @g###### #?# ## | | ??????????#[ g# " ## #?# # | | ??????????# #"G"## #?# # | | ??????????# #" "######+####### # | | ???######## % # | | ???# ! # k% + | | ???# # % # | | ???# "" ; %##########+####### # | | ???# S"" # ##????# #?# # | | ???# "" # #?????# """ #?# ## | | ???# # r#?????# """ #?# # | | ???######## #?????# """ ### ## | | ??????????# ##????# + ## | | ??????????# ##????# """ ###% %## | | ??????????# rk##????# """ !#?# # | | ??????????# %=#?????# """ #?# # | | ?########## ! #?????# #?# # | | ?# # #?????##########?# + | | ?# #= #????????????????# # | | ?# #[ #????????????????# # | | ?# """ # #????????????????# ## | | ?# """"" +% +????????????????# #? | | ?# """"" # #?????######?????# #? | | ?# """"" # #?????# #?????# #? | | ?# """ # #?????# #?????# ## | +----------------------------------------------------+ Best States ------------- Heat Dissipation 31 Energy Generation 14 Energy Capacity 250 Matter Stores 300 Matter Capacity 300 Sight Range 16 Terrain Scan Density 110 Propulsion Shielding 33 Phase Shifting 5 Evasion (%) 57 Targeting Accuracy 5 Armor Integrity Analysis 33 Recoil Reduction 2 Offensive Hacking 10 Item Schematics ----------------- Humpback | -8/Materials | Scanalyzed Hacking Suite | -8/Materials | Scanalyzed System Shield | -8/Materials | Hacked Robot Schematics ------------------ None Fabricated ------------ Nothing Alien Tech Used ----------------- None Achievements -------------- None Challenges ------------ None Game ------ Seed ElectronMassLance Manual? 0 Play Time 00:23:42 Cumulative 97.5 hours Start 2019.11.03 @ 06:46:21 End 2019.11.03 @ 07:07:42 Sessions 1 Manual Loads 0 Difficulty Rogue Special Mode None Game No. 159 Rogue 159 Adventurer 0 Explorer 0 Win Type - Total 0 Types 0/0/0/0/0/0/0 Lore% 31 Gallery% 45 Achievement% 33 Wizard Run 0 Options --------- ASCII 0 Keyboard 0 Movement Mouse Keybinds 0 Fullscreen 1 Font 18/SmallcapsGlow Map View 76x50 Tactical HUD 1 Map Filters NONE Filters NONE Steam 1 RUN: cae93585-ca59-44f1-802e-184eebdf1723